[Event "Titled Tuesday Blitz April 12 Late 2022"]
[White "Renjith, Sravan"]
[Black "Ronka, Erik"]
[WhiteFideId "4306783"]
[BlackFideId "505080"]
[WhiteElo "1863"]
[BlackElo "2264"]
[Result "1-0"]
[Round "02"]
[TimeControl "180+1"]
[Date "2022.04.13"]
[WhiteClock "0:00:04"]
[BlackClock "0:00:01"]

1. d4 {[%clk 0:03:00]}  d5 {[%clk 0:02:59]} 2. c4 {[%clk 0:03:00]}  c6 {[%clk 0:03:00]} 3. cxd5 {[%clk 0:03:00]}  cxd5 {[%clk 0:03:01]} 4. Nc3 {[%clk 0:03:00]}  Nf6 {[%clk 0:03:02]} 5. Nf3 {[%clk 0:03:00]}  Nc6 {[%clk 0:03:02]} 6. Ne5 {[%clk 0:02:53]}  e6 {[%clk 0:03:01]} 7. g3 {[%clk 0:02:51]}  Nxe5 {[%clk 0:03:00]} 8. dxe5 {[%clk 0:02:51]}  Nd7 {[%clk 0:03:01]} 9. f4 {[%clk 0:02:51]}  Bc5 {[%clk 0:02:54]} 10. e4 {[%clk 0:02:48]}  Nb6 {[%clk 0:02:35]} 11. exd5 {[%clk 0:02:35]}  exd5 {[%clk 0:02:36]} 12. Bb5+ {[%clk 0:02:00]}  Bd7 {[%clk 0:02:36]} 13. Qg4 {[%clk 0:01:55]}  O-O {[%clk 0:02:26]} 14. Bxd7 {[%clk 0:01:55]}  Nxd7 {[%clk 0:02:27]} 15. Nxd5 {[%clk 0:01:52]}  Nxe5 {[%clk 0:02:17]} 16. Qd1 {[%clk 0:01:37]}  Ng4 {[%clk 0:01:42]} 17. b4 {[%clk 0:01:29]}  Re8+ {[%clk 0:01:02]} 18. Kf1 {[%clk 0:01:28]}  Bxb4 {[%clk 0:00:38]} 19. Kg2 {[%clk 0:00:50]}  Bc5 {[%clk 0:00:38]} 20. Qf3 {[%clk 0:00:32]}  Nf2 {[%clk 0:00:24]} 21. Rf1 {[%clk 0:00:24]}  Ne4 {[%clk 0:00:25]} 22. Rd1 {[%clk 0:00:21]}  Qa5 {[%clk 0:00:20]} 23. Bb2 {[%clk 0:00:17]}  Rad8 {[%clk 0:00:19]} 24. Qg4 {[%clk 0:00:15]}  f6 {[%clk 0:00:18]} 25. Nxf6+ {[%clk 0:00:14]}  Nxf6 {[%clk 0:00:18]} 26. Bxf6 {[%clk 0:00:14]}  Rd2+ {[%clk 0:00:14]} 27. Kh3 {[%clk 0:00:12]}  Bf8 {[%clk 0:00:14]} 28. Be5 {[%clk 0:00:09]}  Rxd1 {[%clk 0:00:11]} 29. Rxd1 {[%clk 0:00:10]}  Qxa2 {[%clk 0:00:11]} 30. Rd7 {[%clk 0:00:10]}  g6 {[%clk 0:00:07]} 31. Rxb7 {[%clk 0:00:07]}  a5 {[%clk 0:00:07]} 32. Qf3 {[%clk 0:00:04]}  Qe6+ {[%clk 0:00:07]} 33. g4 {[%clk 0:00:04]}  a4 {[%clk 0:00:07]} 34. Qc3 {[%clk 0:00:04]}  a3 {[%clk 0:00:07]} 35. Ra7 {[%clk 0:00:04]}  h5 {[%clk 0:00:06]} 36. Qf3 {[%clk 0:00:02]}  Bg7 {[%clk 0:00:05]} 37. Rxg7+ {[%clk 0:00:01]}  Kf8 {[%clk 0:00:05]} 38. Ra7 {[%clk 0:00:01]}  a2 {[%clk 0:00:05]} 39. Rxa2 {[%clk 0:00:01]}  Qxa2 {[%clk 0:00:05]} 40. gxh5 {[%clk 0:00:01]}  Qe6+ {[%clk 0:00:06]} 41. Kg3 {[%clk 0:00:01]}  Qf5 {[%clk 0:00:06]} 42. hxg6 {[%clk 0:00:01]}  Qxg6+ {[%clk 0:00:07]} 43. Qg4 {[%clk 0:00:02]}  Qxg4+ {[%clk 0:00:06]} 44. Kxg4 {[%clk 0:00:03]}  Kf7 {[%clk 0:00:07]} 45. h4 {[%clk 0:00:04]}  Rg8+ {[%clk 0:00:08]} 46. Kf5 {[%clk 0:00:04]}  Rc8 {[%clk 0:00:07]} 47. h5 {[%clk 0:00:04]}  Kg8 {[%clk 0:00:06]} 48. Kg6 {[%clk 0:00:04]}  Rc6+ {[%clk 0:00:05]} 49. Bf6 {[%clk 0:00:05]}  Ra6 {[%clk 0:00:05]} 50. h6 {[%clk 0:00:05]}  Ra7 {[%clk 0:00:03]} 51. f5 {[%clk 0:00:04]}  Rh7 {[%clk 0:00:03]} 52. Be5 {[%clk 0:00:04]}  Re7 {[%clk 0:00:03]} 53. Bf6 {[%clk 0:00:03]}  Rf7 {[%clk 0:00:03]} 54. Bg5 {[%clk 0:00:02]}  Rh7 {[%clk 0:00:03]} 55. Bf4 {[%clk 0:00:01]}  Rb7 {[%clk 0:00:03]} 56. Be5 {[%clk 0:00:01]}  Rb6+ {[%clk 0:00:03]} 57. Bf6 {[%clk 0:00:02]}  Rb7 {[%clk 0:00:04]} 58. Be5 {[%clk 0:00:02]}  Rf7 {[%clk 0:00:04]} 59. Kg5 {[%clk 0:00:01]}  Re7 {[%clk 0:00:04]} 60. Bg7 {[%clk 0:00:02]}  Rf7 {[%clk 0:00:04]} 61. f6 {[%clk 0:00:02]}  Rb7 {[%clk 0:00:02]} 62. Kf5 {[%clk 0:00:03]}  Rb5+ {[%clk 0:00:02]} 63. Kg6 {[%clk 0:00:03]}  Rb7 {[%clk 0:00:01]} 64. h7# {[%clk 0:00:04]} 1-0


[Site "https://www.chess.com"]

[Event "Titled Tuesday Blitz April 12 Late 2022"]
[White "Riff, Vincent"]
[Black "Svane, Rasmus"]
[WhiteFideId "617776"]
[BlackFideId "4657101"]
[WhiteElo "2377"]
[BlackElo "2645"]
[Result "1/2-1/2"]
[Round "02"]
[TimeControl "180+1"]
[Date "2022.04.12"]
[WhiteClock "0:01:50"]
[BlackClock "0:01:19"]

1. e4 {[%clk 0:03:00]}  c6 {[%clk 0:02:59]} 2. Nc3 {[%clk 0:03:00]}  d5 {[%clk 0:03:00]} 3. Nf3 {[%clk 0:03:01]}  dxe4 {[%clk 0:03:01]} 4. Nxe4 {[%clk 0:03:01]}  Nf6 {[%clk 0:03:02]} 5. Qe2 {[%clk 0:03:01]}  Nxe4 {[%clk 0:03:02]} 6. Qxe4 {[%clk 0:03:01]}  Qa5 {[%clk 0:03:02]} 7. Bc4 {[%clk 0:02:59]}  Bf5 {[%clk 0:03:03]} 8. Qe2 {[%clk 0:02:56]}  e6 {[%clk 0:03:03]} 9. Nd4 {[%clk 0:02:54]}  Be7 {[%clk 0:02:59]} 10. Nxf5 {[%clk 0:02:53]}  Qxf5 {[%clk 0:02:59]} 11. O-O {[%clk 0:02:51]}  Qxc2 {[%clk 0:02:47]} 12. Bd3 {[%clk 0:02:39]}  Qc5 {[%clk 0:02:39]} 13. b4 {[%clk 0:02:38]}  Qd4 {[%clk 0:02:19]} 14. Rb1 {[%clk 0:02:38]}  O-O {[%clk 0:02:20]} 15. Bb2 {[%clk 0:02:35]}  Qh4 {[%clk 0:02:12]} 16. g3 {[%clk 0:02:31]}  Qh6 {[%clk 0:02:12]} 17. b5 {[%clk 0:02:25]}  Nd7 {[%clk 0:02:00]} 18. bxc6 {[%clk 0:02:25]}  bxc6 {[%clk 0:02:00]} 19. Be4 {[%clk 0:02:24]}  Rac8 {[%clk 0:01:57]} 20. Bd4 {[%clk 0:02:23]}  Bc5 {[%clk 0:01:52]} 21. Rb7 {[%clk 0:02:13]}  Bxd4 {[%clk 0:01:49]} 22. Rxd7 {[%clk 0:02:14]}  Bb6 {[%clk 0:01:40]} 23. Qf3 {[%clk 0:02:13]}  Rcd8 {[%clk 0:01:36]} 24. Bxc6 {[%clk 0:02:10]}  Rxd7 {[%clk 0:01:34]} 25. Bxd7 {[%clk 0:02:10]}  Rd8 {[%clk 0:01:35]} 26. Bc6 {[%clk 0:02:01]}  Qxd2 {[%clk 0:01:30]} 27. a4 {[%clk 0:02:01]}  g6 {[%clk 0:01:30]} 28. h4 {[%clk 0:02:00]}  Kg7 {[%clk 0:01:24]} 29. h5 {[%clk 0:01:51]}  Rd3 {[%clk 0:01:20]} 30. h6+ {[%clk 0:01:51]}  Kxh6 {[%clk 0:01:20]} 31. Qxf7 {[%clk 0:01:50]}  Rxg3+ {[%clk 0:01:19]} 32. Kh2 {[%clk 0:01:50]} 1/2-1/2


[Site "https://www.chess.com"]

[Event "Titled Tuesday Blitz April 12 Late 2022"]
[White "Rytenko, Vsevolod"]
[Black "Babazada, Khazar"]
[WhiteFideId "14133040"]
[BlackFideId "13413554"]
[WhiteElo "2120"]
[BlackElo "2406"]
[Result "0-1"]
[Round "02"]
[TimeControl "180+1"]
[Date "2022.04.12"]
[WhiteClock "0:00:20"]
[BlackClock "0:00:19"]

1. e4 {[%clk 0:03:00]}  Nf6 {[%clk 0:03:00]} 2. e5 {[%clk 0:03:00]}  Nd5 {[%clk 0:02:59]} 3. d4 {[%clk 0:03:01]}  d6 {[%clk 0:02:58]} 4. Nf3 {[%clk 0:03:01]}  Nb6 {[%clk 0:02:58]} 5. exd6 {[%clk 0:03:01]}  cxd6 {[%clk 0:02:58]} 6. Be2 {[%clk 0:03:02]}  g6 {[%clk 0:02:58]} 7. O-O {[%clk 0:03:00]}  Bg7 {[%clk 0:02:58]} 8. Re1 {[%clk 0:03:01]}  O-O {[%clk 0:02:58]} 9. h3 {[%clk 0:03:01]}  Nc6 {[%clk 0:02:57]} 10. c3 {[%clk 0:03:02]}  e5 {[%clk 0:02:56]} 11. Na3 {[%clk 0:03:01]}  e4 {[%clk 0:02:55]} 12. Nd2 {[%clk 0:03:00]}  d5 {[%clk 0:02:52]} 13. Nf1 {[%clk 0:03:00]}  f5 {[%clk 0:02:50]} 14. Bf4 {[%clk 0:02:30]}  g5 {[%clk 0:02:49]} 15. Bc1 {[%clk 0:02:27]}  f4 {[%clk 0:02:49]} 16. Bg4 {[%clk 0:02:26]}  Bd7 {[%clk 0:02:04]} 17. Nh2 {[%clk 0:02:22]}  Kh8 {[%clk 0:02:00]} 18. Bxd7 {[%clk 0:02:19]}  Nxd7 {[%clk 0:02:00]} 19. Qg4 {[%clk 0:02:16]}  Qe7 {[%clk 0:01:52]} 20. h4 {[%clk 0:02:04]}  gxh4 {[%clk 0:01:43]} 21. Bxf4 {[%clk 0:02:03]}  Qf7 {[%clk 0:01:44]} 22. Bd6 {[%clk 0:01:42]}  Rg8 {[%clk 0:01:43]} 23. Qxh4 {[%clk 0:01:38]}  Qe6 {[%clk 0:01:27]} 24. Bg3 {[%clk 0:01:37]}  Ne7 {[%clk 0:01:27]} 25. Nb5 {[%clk 0:01:35]}  Raf8 {[%clk 0:01:23]} 26. Nc7 {[%clk 0:01:32]}  Qf7 {[%clk 0:01:24]} 27. Ng4 {[%clk 0:01:28]}  Nf5 {[%clk 0:01:23]} 28. Qh2 {[%clk 0:01:19]}  Nxg3 {[%clk 0:01:04]} 29. fxg3 {[%clk 0:01:14]}  Nc5 {[%clk 0:00:56]} 30. dxc5 {[%clk 0:01:08]}  Qxc7 {[%clk 0:00:56]} 31. Qh5 {[%clk 0:00:52]}  Qxc5+ {[%clk 0:00:54]} 32. Kh2 {[%clk 0:00:53]}  Qc8 {[%clk 0:00:35]} 33. Rad1 {[%clk 0:00:46]}  Rf5 {[%clk 0:00:34]} 34. Qh3 {[%clk 0:00:43]}  Qe8 {[%clk 0:00:34]} 35. Kg1 {[%clk 0:00:37]}  Rh5 {[%clk 0:00:33]} 36. Ne3 {[%clk 0:00:32]}  Rxh3 {[%clk 0:00:33]} 37. gxh3 {[%clk 0:00:33]}  Bh6 {[%clk 0:00:34]} 38. Ng4 {[%clk 0:00:33]}  Qe6 {[%clk 0:00:29]} 39. Kg2 {[%clk 0:00:32]}  Bg5 {[%clk 0:00:26]} 40. Rf1 {[%clk 0:00:29]}  h5 {[%clk 0:00:26]} 41. Nh2 {[%clk 0:00:28]}  Qe5 {[%clk 0:00:22]} 42. Kh1 {[%clk 0:00:25]}  Qxg3 {[%clk 0:00:21]} 43. Rg1 {[%clk 0:00:25]}  Qxh3 {[%clk 0:00:18]} 44. Rxd5 {[%clk 0:00:25]}  Bf4 {[%clk 0:00:18]} 45. Rxg8+ {[%clk 0:00:20]}  Kxg8 {[%clk 0:00:19]} 0-1


[Site "https://www.chess.com"]

[Event "Titled Tuesday Blitz April 12 Late 2022"]
[White "Sarana, Alexey"]
[Black "Abdyzhapar, Asylbek"]
[WhiteFideId "24133795"]
[BlackFideId "13800337"]
[WhiteElo "2666"]
[BlackElo "2331"]
[Result "1-0"]
[Round "02"]
[TimeControl "180+1"]
[Date "2022.04.12"]
[WhiteClock "0:01:03"]
[BlackClock "0:00:07"]

1. d4 {[%clk 0:03:00]}  Nf6 {[%clk 0:02:59]} 2. c4 {[%clk 0:03:01]}  g6 {[%clk 0:02:59]} 3. Nc3 {[%clk 0:03:01]}  Bg7 {[%clk 0:02:59]} 4. e4 {[%clk 0:03:02]}  d6 {[%clk 0:02:59]} 5. Be2 {[%clk 0:03:02]}  O-O {[%clk 0:02:58]} 6. Be3 {[%clk 0:03:03]}  e5 {[%clk 0:02:57]} 7. d5 {[%clk 0:03:03]}  a5 {[%clk 0:02:56]} 8. g4 {[%clk 0:03:04]}  Na6 {[%clk 0:02:56]} 9. g5 {[%clk 0:03:05]}  Nd7 {[%clk 0:02:55]} 10. h4 {[%clk 0:03:05]}  f5 {[%clk 0:02:53]} 11. gxf6 {[%clk 0:03:05]}  Nxf6 {[%clk 0:02:53]} 12. h5 {[%clk 0:03:06]}  Nc5 {[%clk 0:02:50]} 13. hxg6 {[%clk 0:03:06]}  hxg6 {[%clk 0:02:50]} 14. Bxc5 {[%clk 0:03:04]}  dxc5 {[%clk 0:02:49]} 15. Qd3 {[%clk 0:02:53]}  a4 {[%clk 0:02:26]} 16. O-O-O {[%clk 0:02:50]}  Ra6 {[%clk 0:02:25]} 17. a3 {[%clk 0:02:43]}  Bd7 {[%clk 0:02:24]} 18. Kb1 {[%clk 0:02:39]}  Rb6 {[%clk 0:02:24]} 19. Nf3 {[%clk 0:02:36]}  Nh5 {[%clk 0:02:22]} 20. Qe3 {[%clk 0:02:32]}  Qe7 {[%clk 0:02:16]} 21. Rdg1 {[%clk 0:02:28]}  Nf4 {[%clk 0:02:16]} 22. Bd1 {[%clk 0:02:25]}  c6 {[%clk 0:01:46]} 23. Bxa4 {[%clk 0:02:05]}  Ra8 {[%clk 0:01:43]} 24. Nh4 {[%clk 0:01:57]}  cxd5 {[%clk 0:01:38]} 25. Nxd5 {[%clk 0:01:23]}  Nxd5 {[%clk 0:01:37]} 26. cxd5 {[%clk 0:01:19]}  Rxa4 {[%clk 0:01:12]} 27. Nxg6 {[%clk 0:01:19]}  Qf6 {[%clk 0:00:56]} 28. Qxc5 {[%clk 0:01:18]}  Qd6 {[%clk 0:00:20]} 29. Ne7+ {[%clk 0:01:05]}  Kf7 {[%clk 0:00:19]} 30. Rh7 {[%clk 0:01:04]}  Qxc5 {[%clk 0:00:17]} 31. Rgxg7+ {[%clk 0:01:05]}  Ke8 {[%clk 0:00:07]} 32. Rg8# {[%clk 0:01:03]} 1-0


[Site "https://www.chess.com"]

[Event "Titled Tuesday Blitz April 12 Late 2022"]
[White "Silvestre, Christian"]
[Black "Afshar, Niusha"]
[WhiteFideId "30956269"]
[BlackFideId "12509892"]
[WhiteElo "2429"]
[BlackElo "1862"]
[Result "1-0"]
[Round "02"]
[TimeControl "180+1"]
[Date "2022.04.13"]
[WhiteClock "0:00:16"]
[BlackClock "0:00:19"]

1. e4 {[%clk 0:03:00]}  c5 {[%clk 0:02:59]} 2. Nc3 {[%clk 0:03:00]}  Nc6 {[%clk 0:02:59]} 3. Bc4 {[%clk 0:02:59]}  e6 {[%clk 0:02:59]} 4. d3 {[%clk 0:02:59]}  d5 {[%clk 0:02:59]} 5. exd5 {[%clk 0:02:58]}  exd5 {[%clk 0:03:00]} 6. Bxd5 {[%clk 0:02:49]}  Bd7 {[%clk 0:02:57]} 7. Nf3 {[%clk 0:02:48]}  Nf6 {[%clk 0:02:57]} 8. Qe2+ {[%clk 0:02:40]}  Be7 {[%clk 0:02:55]} 9. O-O {[%clk 0:02:39]}  O-O {[%clk 0:02:54]} 10. Bb3 {[%clk 0:02:14]}  a6 {[%clk 0:02:46]} 11. Re1 {[%clk 0:02:11]}  Bd6 {[%clk 0:02:45]} 12. Bg5 {[%clk 0:02:09]}  h6 {[%clk 0:02:41]} 13. Bh4 {[%clk 0:02:07]}  Re8 {[%clk 0:02:37]} 14. Qd2 {[%clk 0:02:03]}  Nd4 {[%clk 0:02:26]} 15. Nxd4 {[%clk 0:01:59]}  cxd4 {[%clk 0:02:27]} 16. Ne4 {[%clk 0:01:54]}  Nxe4 {[%clk 0:02:23]} 17. Rxe4 {[%clk 0:01:53]}  Qb6 {[%clk 0:02:08]} 18. Rae1 {[%clk 0:01:30]}  Rxe4 {[%clk 0:01:56]} 19. Rxe4 {[%clk 0:01:28]}  Bc6 {[%clk 0:01:56]} 20. Re1 {[%clk 0:01:19]}  Qc5 {[%clk 0:01:50]} 21. Bg3 {[%clk 0:01:15]}  Bxg3 {[%clk 0:01:45]} 22. hxg3 {[%clk 0:01:16]}  b5 {[%clk 0:01:40]} 23. Qf4 {[%clk 0:01:10]}  Rf8 {[%clk 0:01:29]} 24. Re5 {[%clk 0:01:08]}  Qd6 {[%clk 0:01:26]} 25. Rf5 {[%clk 0:00:56]}  Qd7 {[%clk 0:01:03]} 26. g4 {[%clk 0:00:42]}  a5 {[%clk 0:01:02]} 27. a3 {[%clk 0:00:40]}  a4 {[%clk 0:00:59]} 28. Ba2 {[%clk 0:00:40]}  g6 {[%clk 0:00:45]} 29. Rf6 {[%clk 0:00:39]}  Kg7 {[%clk 0:00:45]} 30. Rd6 {[%clk 0:00:33]}  Qb7 {[%clk 0:00:28]} 31. Qf6+ {[%clk 0:00:29]}  Kh7 {[%clk 0:00:26]} 32. Rxc6 {[%clk 0:00:29]}  Re8 {[%clk 0:00:25]} 33. Qxf7+ {[%clk 0:00:23]}  Qxf7 {[%clk 0:00:24]} 34. Bxf7 {[%clk 0:00:24]}  Re1+ {[%clk 0:00:25]} 35. Kh2 {[%clk 0:00:24]}  Rb1 {[%clk 0:00:25]} 36. Bxg6+ {[%clk 0:00:22]}  Kg7 {[%clk 0:00:25]} 37. Be4 {[%clk 0:00:23]}  Rxb2 {[%clk 0:00:25]} 38. f4 {[%clk 0:00:22]}  Ra2 {[%clk 0:00:25]} 39. Rb6 {[%clk 0:00:21]}  Rxa3 {[%clk 0:00:25]} 40. Rxb5 {[%clk 0:00:21]}  Rc3 {[%clk 0:00:26]} 41. Ra5 {[%clk 0:00:20]}  a3 {[%clk 0:00:26]} 42. g5 {[%clk 0:00:20]}  hxg5 {[%clk 0:00:26]} 43. fxg5 {[%clk 0:00:21]}  Rxc2 {[%clk 0:00:21]} 44. Rxa3 {[%clk 0:00:20]}  Rf2 {[%clk 0:00:21]} 45. Ra7+ {[%clk 0:00:19]}  Kg8 {[%clk 0:00:20]} 46. g6 {[%clk 0:00:19]}  Rf6 {[%clk 0:00:20]} 47. Kg3 {[%clk 0:00:17]}  Rd6 {[%clk 0:00:19]} 48. Kf4 {[%clk 0:00:16]} 1-0


[Site "https://www.chess.com"]

[Event "Titled Tuesday Blitz April 12 Late 2022"]
[White "Sochacki, Christophe"]
[Black "Minko, Dmitry"]
[WhiteFideId "662569"]
[BlackFideId "24188468"]
[WhiteElo "2685"]
[BlackElo "2426"]
[Result "0-1"]
[Round "02"]
[TimeControl "180+1"]
[Date "2022.04.13"]
[WhiteClock "0:00:28"]
[BlackClock "0:01:11"]

1. b3 {[%clk 0:03:00]}  Nf6 {[%clk 0:02:53]} 2. Bb2 {[%clk 0:03:00]}  d5 {[%clk 0:02:54]} 3. Nf3 {[%clk 0:03:00]}  c5 {[%clk 0:02:48]} 4. g3 {[%clk 0:02:59]}  e6 {[%clk 0:02:48]} 5. Bg2 {[%clk 0:03:00]}  b6 {[%clk 0:02:48]} 6. O-O {[%clk 0:02:57]}  Bb7 {[%clk 0:02:48]} 7. c4 {[%clk 0:02:56]}  Nbd7 {[%clk 0:02:43]} 8. d4 {[%clk 0:02:50]}  dxc4 {[%clk 0:02:37]} 9. bxc4 {[%clk 0:02:45]}  cxd4 {[%clk 0:02:37]} 10. Nxd4 {[%clk 0:02:41]}  Bxg2 {[%clk 0:02:36]} 11. Kxg2 {[%clk 0:02:42]}  Qc7 {[%clk 0:02:31]} 12. Na3 {[%clk 0:02:40]}  Bc5 {[%clk 0:02:29]} 13. Nab5 {[%clk 0:02:35]}  Qb7+ {[%clk 0:02:29]} 14. f3 {[%clk 0:02:35]}  a6 {[%clk 0:02:29]} 15. Nc3 {[%clk 0:02:30]}  O-O {[%clk 0:02:23]} 16. Nb3 {[%clk 0:02:25]}  Be7 {[%clk 0:01:57]} 17. e4 {[%clk 0:02:24]}  Rac8 {[%clk 0:01:56]} 18. Qe2 {[%clk 0:02:23]}  Ne5 {[%clk 0:01:51]} 19. Nd2 {[%clk 0:02:13]}  Rfd8 {[%clk 0:01:50]} 20. f4 {[%clk 0:02:00]}  Rxd2 {[%clk 0:01:41]} 21. Qxd2 {[%clk 0:01:59]}  Nxc4 {[%clk 0:01:41]} 22. Qe2 {[%clk 0:01:55]}  Nxb2 {[%clk 0:01:41]} 23. Qxb2 {[%clk 0:01:55]}  Nxe4 {[%clk 0:01:41]} 24. Nxe4 {[%clk 0:01:32]}  Qxe4+ {[%clk 0:01:42]} 25. Kh3 {[%clk 0:01:30]}  Qf5+ {[%clk 0:01:39]} 26. Kg2 {[%clk 0:01:21]}  Rc2+ {[%clk 0:01:38]} 27. Qxc2 {[%clk 0:01:19]}  Qxc2+ {[%clk 0:01:39]} 28. Rf2 {[%clk 0:01:19]}  Qe4+ {[%clk 0:01:39]} 29. Rf3 {[%clk 0:01:18]}  Bc5 {[%clk 0:01:36]} 30. Rf1 {[%clk 0:01:14]}  Qe2+ {[%clk 0:01:35]} 31. Kh3 {[%clk 0:01:14]}  Qxa2 {[%clk 0:01:34]} 32. Rd3 {[%clk 0:01:12]}  h5 {[%clk 0:01:31]} 33. f5 {[%clk 0:01:09]}  exf5 {[%clk 0:01:29]} 34. Rf4 {[%clk 0:00:56]}  g6 {[%clk 0:01:23]} 35. Kh4 {[%clk 0:00:52]}  Qg2 {[%clk 0:01:22]} 36. Kg5 {[%clk 0:00:45]}  Kg7 {[%clk 0:01:19]} 37. Rff3 {[%clk 0:00:40]}  Bd6 {[%clk 0:01:11]} 38. h3 {[%clk 0:00:30]}  f6+ {[%clk 0:01:11]} 39. Kh4 {[%clk 0:00:29]}  g5+ {[%clk 0:01:10]} 40. Kxh5 {[%clk 0:00:28]}  Qxh3# {[%clk 0:01:11]} 0-1


[Site "https://www.chess.com"]

[Event "Titled Tuesday Blitz April 12 Late 2022"]
[White "Song, Michael"]
[Black "Petrova, Irina"]
[WhiteFideId "2613190"]
[BlackFideId "14124122"]
[WhiteElo "2274"]
[BlackElo "1993"]
[Result "1/2-1/2"]
[Round "02"]
[TimeControl "180+1"]
[Date "2022.04.13"]
[WhiteClock "0:00:06"]
[BlackClock "0:00:13"]

1. e4 {[%clk 0:03:00]}  d6 {[%clk 0:02:59]} 2. d4 {[%clk 0:03:00]}  Nf6 {[%clk 0:03:00]} 3. Nc3 {[%clk 0:03:00]}  e5 {[%clk 0:03:00]} 4. Nf3 {[%clk 0:02:57]}  Nbd7 {[%clk 0:02:59]} 5. Bc4 {[%clk 0:02:55]}  Be7 {[%clk 0:02:59]} 6. O-O {[%clk 0:02:54]}  O-O {[%clk 0:02:59]} 7. Re1 {[%clk 0:02:55]}  c6 {[%clk 0:02:59]} 8. a4 {[%clk 0:02:50]}  h6 {[%clk 0:02:59]} 9. Bf1 {[%clk 0:02:41]}  Re8 {[%clk 0:02:58]} 10. a5 {[%clk 0:02:29]}  Bf8 {[%clk 0:02:57]} 11. h3 {[%clk 0:02:25]}  exd4 {[%clk 0:02:55]} 12. Nxd4 {[%clk 0:02:25]}  Nc5 {[%clk 0:02:55]} 13. f3 {[%clk 0:02:20]}  d5 {[%clk 0:02:48]} 14. e5 {[%clk 0:02:15]}  Nfd7 {[%clk 0:02:41]} 15. f4 {[%clk 0:02:11]}  Ne6 {[%clk 0:02:40]} 16. Nf3 {[%clk 0:02:08]}  Bc5+ {[%clk 0:02:22]} 17. Kh1 {[%clk 0:01:56]}  Ndf8 {[%clk 0:02:20]} 18. f5 {[%clk 0:01:48]}  Ng5 {[%clk 0:02:19]} 19. Nxg5 {[%clk 0:01:46]}  hxg5 {[%clk 0:02:20]} 20. Bd3 {[%clk 0:01:43]}  Bd4 {[%clk 0:02:08]} 21. Qg4 {[%clk 0:01:01]}  Rxe5 {[%clk 0:02:01]} 22. Bxg5 {[%clk 0:01:00]}  Rxe1+ {[%clk 0:01:57]} 23. Rxe1 {[%clk 0:00:59]}  Bf6 {[%clk 0:01:57]} 24. Bxf6 {[%clk 0:00:57]}  Qxf6 {[%clk 0:01:58]} 25. Re8 {[%clk 0:00:55]}  Bxf5 {[%clk 0:01:52]} 26. Rxf8+ {[%clk 0:00:54]}  Rxf8 {[%clk 0:01:51]} 27. Qxf5 {[%clk 0:00:53]}  Qxf5 {[%clk 0:01:44]} 28. Bxf5 {[%clk 0:00:54]}  Re8 {[%clk 0:01:45]} 29. Kg1 {[%clk 0:00:52]}  Re1+ {[%clk 0:01:45]} 30. Kf2 {[%clk 0:00:52]}  Ra1 {[%clk 0:01:46]} 31. b4 {[%clk 0:00:50]}  Ra3 {[%clk 0:01:42]} 32. Ne2 {[%clk 0:00:49]}  Ra4 {[%clk 0:01:40]} 33. c3 {[%clk 0:00:49]}  Ra2 {[%clk 0:01:39]} 34. Ke3 {[%clk 0:00:47]}  Kf8 {[%clk 0:01:37]} 35. g3 {[%clk 0:00:45]}  Ke7 {[%clk 0:01:37]} 36. Bd3 {[%clk 0:00:33]}  Kd6 {[%clk 0:01:31]} 37. Nd4 {[%clk 0:00:33]}  g6 {[%clk 0:01:29]} 38. h4 {[%clk 0:00:33]}  Ra3 {[%clk 0:01:23]} 39. Kd2 {[%clk 0:00:33]}  Ra2+ {[%clk 0:01:22]} 40. Bc2 {[%clk 0:00:33]}  Ra1 {[%clk 0:01:21]} 41. Nf3 {[%clk 0:00:27]}  b6 {[%clk 0:01:18]} 42. axb6 {[%clk 0:00:27]}  axb6 {[%clk 0:01:19]} 43. g4 {[%clk 0:00:27]}  Rh1 {[%clk 0:01:17]} 44. Ke3 {[%clk 0:00:27]}  c5 {[%clk 0:01:15]} 45. bxc5+ {[%clk 0:00:27]}  bxc5 {[%clk 0:01:16]} 46. Bd3 {[%clk 0:00:25]}  Rh3 {[%clk 0:01:11]} 47. c4 {[%clk 0:00:23]}  dxc4 {[%clk 0:01:02]} 48. Bxc4 {[%clk 0:00:23]}  f5 {[%clk 0:00:58]} 49. g5 {[%clk 0:00:22]}  Ke7 {[%clk 0:00:53]} 50. Bf1 {[%clk 0:00:19]}  Rh1 {[%clk 0:00:51]} 51. Kf2 {[%clk 0:00:19]}  c4 {[%clk 0:00:50]} 52. Bxc4 {[%clk 0:00:17]}  Ra1 {[%clk 0:00:49]} 53. Ke3 {[%clk 0:00:16]}  Ra3+ {[%clk 0:00:48]} 54. Ke2 {[%clk 0:00:11]}  Ra4 {[%clk 0:00:43]} 55. Bd3 {[%clk 0:00:07]}  Kf8 {[%clk 0:00:40]} 56. Ke3 {[%clk 0:00:08]}  Kg7 {[%clk 0:00:39]} 57. Nd4 {[%clk 0:00:08]}  Kh7 {[%clk 0:00:37]} 58. Nf3 {[%clk 0:00:07]}  Kg7 {[%clk 0:00:36]} 59. h5 {[%clk 0:00:06]}  gxh5 {[%clk 0:00:36]} 60. Bxf5 {[%clk 0:00:06]}  h4 {[%clk 0:00:34]} 61. Be4 {[%clk 0:00:06]}  h3 {[%clk 0:00:33]} 62. Nh2 {[%clk 0:00:06]}  Ra2 {[%clk 0:00:30]} 63. Ng4 {[%clk 0:00:06]}  h2 {[%clk 0:00:29]} 64. Kf4 {[%clk 0:00:06]}  Rb2 {[%clk 0:00:20]} 65. Kg3 {[%clk 0:00:06]}  Rb4 {[%clk 0:00:18]} 66. Bf3 {[%clk 0:00:06]}  Kg6 {[%clk 0:00:15]} 67. Nxh2 {[%clk 0:00:05]}  Kxg5 {[%clk 0:00:15]} 68. Nf1 {[%clk 0:00:06]}  Rb3 {[%clk 0:00:13]} 69. Kf2 {[%clk 0:00:06]}  Rxf3+ {[%clk 0:00:13]} 70. Kxf3 {[%clk 0:00:06]} 1/2-1/2


[Site "https://www.chess.com"]

[Event "Titled Tuesday Blitz April 12 Late 2022"]
[White "Stearman, Josiah"]
[Black "Holt, Conrad"]
[WhiteFideId "2062496"]
[BlackFideId "2034387"]
[WhiteElo "2402"]
[BlackElo "2586"]
[Result "0-1"]
[Round "02"]
[TimeControl "180+1"]
[Date "2022.04.12"]
[WhiteClock "0:00:16"]
[BlackClock "0:00:28"]

1. e4 {[%clk 0:02:57]}  e6 {[%clk 0:02:59]} 2. d3 {[%clk 0:02:57]}  d5 {[%clk 0:02:59]} 3. Qe2 {[%clk 0:02:57]}  dxe4 {[%clk 0:02:50]} 4. dxe4 {[%clk 0:02:58]}  e5 {[%clk 0:02:50]} 5. Nf3 {[%clk 0:02:58]}  Nd7 {[%clk 0:02:46]} 6. c3 {[%clk 0:02:56]}  Ngf6 {[%clk 0:02:44]} 7. Qc2 {[%clk 0:02:56]}  Bd6 {[%clk 0:02:43]} 8. Bg5 {[%clk 0:02:56]}  h6 {[%clk 0:02:26]} 9. Bh4 {[%clk 0:02:54]}  g5 {[%clk 0:02:26]} 10. Bg3 {[%clk 0:02:53]}  Nh5 {[%clk 0:02:26]} 11. Nbd2 {[%clk 0:02:52]}  Nxg3 {[%clk 0:02:19]} 12. hxg3 {[%clk 0:02:52]}  Nb6 {[%clk 0:02:19]} 13. O-O-O {[%clk 0:02:50]}  Be6 {[%clk 0:02:17]} 14. Kb1 {[%clk 0:02:50]}  Qf6 {[%clk 0:02:16]} 15. Nc4 {[%clk 0:02:19]}  Nxc4 {[%clk 0:02:01]} 16. Qa4+ {[%clk 0:02:19]}  Bd7 {[%clk 0:01:44]} 17. Qxc4 {[%clk 0:02:18]}  g4 {[%clk 0:01:44]} 18. Ne1 {[%clk 0:02:02]}  Qxf2 {[%clk 0:01:42]} 19. Nd3 {[%clk 0:02:02]}  Qb6 {[%clk 0:01:23]} 20. Nxe5 {[%clk 0:01:19]}  Bxe5 {[%clk 0:01:07]} 21. Rxd7 {[%clk 0:01:17]}  Kxd7 {[%clk 0:01:07]} 22. Qxf7+ {[%clk 0:01:17]}  Kd8 {[%clk 0:00:59]} 23. Be2 {[%clk 0:01:16]}  Qf6 {[%clk 0:00:36]} 24. Rd1+ {[%clk 0:00:29]}  Kc8 {[%clk 0:00:36]} 25. Qd7+ {[%clk 0:00:28]}  Kb8 {[%clk 0:00:36]} 26. Bxg4 {[%clk 0:00:24]}  a5 {[%clk 0:00:34]} 27. Be6 {[%clk 0:00:16]}  Ra6 {[%clk 0:00:32]} 28. Bd5 {[%clk 0:00:16]}  Rb6 {[%clk 0:00:28]} 0-1


[Site "https://www.chess.com"]